{"text_format":"2","workbook":"xlsx","n_sheets":1,"sheets":["Sheet1"],"not_rendered":{"charts":0,"images":1,"macros":0,"external_links":0,"defined_names":0,"comments":0,"pivot_tables":0},"unopened":[],"bounds":{"document_bytes":16777216,"sheet_cells":100000,"run_cost":"one","rows_first":2000,"rows_last":500,"rows_between":2000,"halvings":0,"cell_chars":16384,"cell_head_chars":4096},"cells_cut":0,"cells_raw":0,"read":"whole","date_system":"1900"}

{"sheet":"Sheet1","index":0,"n_rows":62,"n_cols":6,"rows_kept":62,"cut":false,"hidden":false,"merged":[[10,1,10,5],[11,1,11,5],[17,1,17,5],[18,1,18,5],[20,1,21,1],[20,2,20,5],[21,2,21,5],[59,1,59,5],[61,1,61,5],[22,2,22,5],[23,1,23,5],[36,1,36,5],[42,1,42,5],[53,1,53,5],[55,1,55,5],[57,1,57,5]]}
[null,"                         ОСНОВНО УЧИЛИЩЕ „ПЕТКО РАЧЕВ СЛАВЕЙКОВ”"]
[null,"                         гр. Велико Търново, ул. „Освобождение” № 29"]
[null,"                         тел. 0887948282 – директор, 062/63-14-42 – зам.-директор, канцелария"]
[null,"                         e-mail: ouslaveikovvt@prsvt.org; www.ouslaveikov.weebly.com "]
[null,"                                                                                             –––––––––––––––––––––––––––––––––––––––––––––––––––––––––––––"]
[]
[null,"УТВЪРЖДАВАМ"]
[null,"(Данка Борисова"]
[null,"Директор на ОУ „П. Р. Славейков“ - гр. В. Търново)"]
[]
[null,"УЧИЛИЩЕН УЧЕБЕН ПЛАН"]
[null,"за IVа клас"]
[]
[null,"Учебна година: 2020/2021"]
[null,"Форма на обучение: дневна"]
[null,"Организация на учебния ден: целодневна"]
[]
[null,"Училищният учебен план е приет на заседание на Педагогическия съвет от 09.07.2020 г., съгласуван е с Обществения съвет на 09.07.2019 г. и е утвърден със заповед на директора № 445А/10.07.2020 г."]
[null,"II. УЧЕБНИ ПРЕДМЕТИ, СЕДМИЧЕН И ГОДИШЕН БРОЙ НА УЧЕБНИТЕ ЧАСОВЕ"]
[]
[null,null,"Начален етап"]
[null,null," IV клас"]
[null,"Учебни седмици",34.0]
[null,"Раздел А – задължителни учебни часове"]
[null,"Учебни предмети","Седмичен брой учебни часове ","Седмичен брой учебни часове Първи срок","Седмичен брой учебни часове Втори срок","Годишен брой учебни часове"]
[null,"Български език и литература",7.0,7.0,7.0,{"$f":"C26*34","v":238}]
[null,"Чужд език – английски език",3.0,3.0,3.0,102]
[null,"Математика",4.0,4.0,4.0,136]
[null,"Компютърно моделиране",1.0,1.0,1.0,34]
[null,"Човекът и обществото",1.0,1.0,1.0,34]
[null,"Човекът и природата",2.0,2.0,2.0,68]
[null,"Музика",1.5,2.0,1.0,51]
[null,"Изобразително изкуство",1.5,2.0,1.0,51]
[null,"Технологии и предприемачество",1.0,1.0,1.0,34]
[null,"Физическо възпитание и спорт",2.5,2.0,3.0,85]
[null,"Общо за раздел А",{"$f":"SUM(C26:C35)","v":24.5},25,24,833]
[null,"Раздел Б – избираеми учебни часове"]
[null,"Общ брой часове за раздел Б",2.5,{"$f":"D39+D40+D41","v":2},3,{"$f":"C38*34","v":85}]
[null,"Български език и литература",1.0,1.0,1.0,34]
[null,"Математика",1.5,1.0,2.0,51]
[{"$nulls":5},0]
[null,"Общо за раздел А + раздел Б",{"$f":"C36+C38","v":27},27,27,918]
[null,"Раздел В – факултативни учебни часове"]
[null,"Общ брой часове за раздел В",2.0,2.0,2.0,{"$f":"C44*34","v":68}]
[null,"Хореография – народни танци",2.0,2.0,2.0,68]
[{"$nulls":5},{"$f":"C46*32","v":0}]
[]
[]
[null,"Общо за раздел А + раздел Б + раздел В",{"$f":"C42+C44","v":29},29,29,986]
[]
[]
[null,"ІІ. ПОЯСНИТЕЛНИ БЕЛЕЖКИ"]
[]
[null,"1. Училищният учебен план е разработен съгласно чл. 94, на Закона за училищното и предучилищното образование, чл. 14, чл. 16 и чл. 17 на Наредба № 4 от 30.11.2015г. за учебния план и Приложение № 1 към същата Наредба."]
[]
[null,"2. Всяка учебна седмица, освен часовете по физическо възпитание и спорт – ООП, се включва и по един учебен час за организиране и провеждане на спортни дейности чрез следните видове спорт: минибаскетбол, съгласно чл. 92, ал. 1 от ЗПУО, чл.14, ал. 3, т. 7 и ал. 5 от Наредба № 4/30.11.2015 за учебния план, Заповед № РД09-1111/15.08.2016 г. на министъра на образованието и науката за организиране и провеждане на спортни дейности."]
[]
[null,"3. Всяка учебна седмица включва и по един час на класа съгласно чл. 92, ал. 2 от ЗПУО, чл. 14, ал. 6 от Наредба № 4/30.11.2015 за учебния план. "]
[]
[null,"4. Обучението в училището се осъществява на едносменен режим, часовете от раздели А и Б се провеждат в сутрешен блок, а факултативните учебни часове и допълнителните часове по т. 2 и т. 3 – след приключване на задължителните и избираемите учебни часове или след часовете за самоподготовка от следобедния блок."]
[]
[null,"5. Екземпляр от учебния план на хартиен носител се съхранява в дирекцията на училището, а в електронен вид е публикуван на сайта на училището."]